bitfinex-derivatives/quotes_SOLF0:USTF0_20241016
["timestamp","ask_amount","ask_price","bid_price","bid_amount"]
[1729094481202,15.41,155.83,155.77,5.18]
[1729094481710,16.8265,155.85,155.77,5.18]
[1729094481911,16.8265,155.85,155.77,20.59]
[1729094481912,15.41,155.85,155.77,20.59]
[1729094482112,3.2094,155.82,155.79,3.2097]
[1729094482499,20.59,155.86,155.77,20.59]
[1729094482714,20.59,155.86,155.78,3.2101]
[1729094483216,3.2096,155.81,155.78,3.2101]
[1729094484825,3.2092,155.83,155.77,20.59]
[1729094485016,5.18,155.86,155.77,20.59]
[1729094485017,5.18,155.86,155.79,15.41]
[1729094485224,15.41,155.88,155.8,1.4476]
[1729094485622,3.2093,155.82,155.8,4.6572]
[1729094485922,15.41,155.88,155.8,4.6572]
[1729094486426,15.41,155.88,155.8,1.4476]
[1729094486625,3.2094,155.82,155.8,1.4476]
[1729094486922,3.2094,155.82,155.8,4.6573]
[1729094488134,3.2092,155.83,155.8,4.6573]
[1729094488426,15.41,155.88,155.8,4.6573]
[1729094488622,15.41,155.86,155.77,5.18]
[1729094488829,3.2099,155.79,155.77,5.18]
[1729094489532,3.21,155.79,155.77,5.18]
[1729094489836,15.41,155.84,155.76,8.37609323]
[1729094490126,3.2103,155.77,155.76,8.37609323]
[1729094490328,3.2103,155.77,155.76,3.19609323]
[1729094490533,15.41,155.82,155.74,6.5246]
[1729094490833,3.2107,155.75,155.74,6.5246]
[1729094491130,15.41,155.82,155.74,12.97661237]
[1729094491328,3.2105,155.76,155.74,12.97661237]
[1729094492223,1.3294,155.83,155.74,9.76571237]
[1729094492420,1.3294,155.83,155.76,15.41]
[1729094493127,5.18,155.84,155.76,15.41]
[1729094493325,3.2095,155.81,155.76,15.41]
[1729094493525,1.4275,155.87,155.78,15.41]
[1729094493834,3.2086,155.86,155.83,15.41]
[1729094494135,1.3894,155.9,155.83,18.63634805]
[1729094494136,6.5694,155.9,155.83,18.63634805]
[1729094494331,3.2084,155.87,155.83,18.63634805]
[1729094494633,6.5694,155.9,155.83,18.63634805]
[1729094494829,1.3894,155.9,155.83,18.63634805]
[1729094495019,3.2084,155.87,155.83,18.63634805]
[1729094495327,3.2084,155.87,155.84,3.2088]
[1729094495728,3.2082,155.88,155.85,3.2086]
[1729094495928,6.5694,155.92,155.85,3.2086]
[1729094496227,6.5694,155.92,155.83,18.63634805]
[1729094496931,3.2084,155.87,155.84,3.2088]
[1729094499027,3.2084,155.87,155.83,18.63634805]
[1729094499028,3.208,155.88,155.86,3.2084]
[1729094499234,3.208,155.88,155.84,5.18]
[1729094499928,1.3894,155.92,155.84,5.18]
[1729094500126,3.208,155.89,155.85,15.41]
[1729094500533,3.208,155.89,155.86,3.2083]
[1729094501146,1.3894,155.92,155.84,5.18]
[1729094501147,3.2074,155.92,155.89,3.2078]
[1729094501448,15.41,155.97,155.88,5.18]
[1729094501634,3.2073,155.92,155.88,11.1674]
[1729094502137,3.2073,155.92,155.88,7.9596]
[1729094502838,3.2071,155.93,155.9,3.2076]
[1729094503436,15.41,155.97,155.88,7.9596]
[1729094503740,3.2073,155.92,155.89,3.2077]
[1729094504240,15.41,155.97,155.88,11.1676]
[1729094505133,5.18,155.98,155.88,11.1676]
[1729094505134,15.41,155.95,155.88,6.5643]
[1729094505839,3.2077,155.9,155.88,6.5643]
[1729094506339,3.2077,155.9,155.88,9.7723]
[1729094506733,3.2077,155.9,155.88,6.5643]
[1729094506937,3.2078,155.89,155.88,6.5643]
[1729094507133,15.41,155.95,155.88,6.5643]
[1729094507432,3.2078,155.9,155.88,6.5643]
[1729094510033,3.2073,155.92,155.89,3.2078]
[1729094510340,15.41,155.95,155.88,5.16]
[1729094510645,3.2077,155.9,155.88,5.16]
[1729094511337,3.2078,155.89,155.88,5.16]
[1729094515052,15.41,155.91,155.86,5.16]
[1729094515843,15.41,155.93,155.86,5.16]
[1729094516539,3.2081,155.88,155.86,8.3684]
[1729094517944,3.2081,155.88,155.86,5.16]
[1729094519444,15.41,155.93,155.86,8.3683]
[1729094520451,3.208,155.89,155.86,8.3683]
[1729094521943,3.208,155.89,155.87,9.86]
[1729094522944,6.4128,155.97,155.88,9.86]
[1729094523142,21.4328,155.97,155.91,9.86]
[1729094523538,3.2072,155.92,155.91,9.86]
[1729094524051,3.2072,155.92,155.91,3.12951523]
[1729094524251,3.2072,155.92,155.9,3.2076]
[1729094524945,5.16,155.98,155.88,15.41]
[1729094525150,3.207,155.93,155.91,3.2073]
[1729094525346,3.207,155.93,155.91,6.44550218]
[1729094525546,3.207,155.93,155.91,3.23820218]
[1729094525742,3.207,155.93,155.9,19.9587]
[1729094525949,3.2073,155.92,155.9,1.3412]
[1729094527050,3.2071,155.93,155.9,4.5487]
[1729094527575,3.2071,155.93,155.91,15.41]
[1729094527847,6.4866,155.99,155.91,15.41]
[1729094528046,6.4866,155.99,155.91,18.60843422]
[1729094529553,3.2072,155.92,155.91,18.60843422]
[1729094529754,6.4866,155.99,155.91,18.60843422]
[1729094529954,3.207,155.94,155.91,21.81573422]
[1729094530147,6.4866,155.99,155.91,21.81573422]
[1729094530958,3.2071,155.93,155.91,21.81573422]
[1729094531556,3.2071,155.93,155.91,18.60843422]
[1729094532359,3.2071,155.93,155.91,21.81573422]
[1729094533454,6.4866,155.99,155.91,21.81573422]
[1729094533655,3.2069,155.94,155.92,3.2072]
[1729094533954,6.4866,155.99,155.92,3.2072]
[1729094534860,6.4866,155.99,155.91,18.60843422]
[1729094535061,3.2069,155.94,155.91,21.81573422]
[1729094535266,6.4866,155.99,155.91,18.60843422]
[1729094536152,3.2071,155.93,155.91,18.60843422]
[1729094536752,6.4866,155.99,155.91,18.60843422]
[1729094536753,3.2072,155.92,155.91,18.60843422]
[1729094538459,3.207,155.94,155.91,21.81573422]
[1729094538664,12.8984,155.99,155.91,21.81573422]
[1729094540463,3.2069,155.94,155.91,21.81573422]
[1729094540665,12.8984,155.99,155.91,18.60843422]
[1729094541265,3.2072,155.92,155.91,3.19843422]
[1729094541570,5.16,155.95,155.86,5.16]
[1729094541868,3.2082,155.88,155.86,11.5151579]
[1729094542058,3.2082,155.88,155.86,8.3067579]
[1729094542362,3.2082,155.87,155.86,3.1467579]
[1729094542563,3.2082,155.87,155.85,21.9764]
[1729094542965,3.2081,155.88,155.85,25.11192979]
[1729094543267,3.2081,155.88,155.85,28.32042979]
[1729094544070,3.2081,155.88,155.87,9.86]
[1729094546272,3.2084,155.86,155.85,8.29552979]
[1729094546572,1.4024,155.93,155.85,18.15552979]
[1729094546757,1.4024,155.93,155.89,9.86]
[1729094547072,9.86,155.96,155.91,9.86]
[1729094547564,3.2072,155.92,155.91,9.86]
[1729094547873,1.4024,155.99,155.91,9.86]
[1729094548066,1.4024,155.99,155.95,9.86]
[1729094548264,3.2064,155.96,155.95,13.01320876]
[1729094549373,105.22775695,156.0,155.95,13.01320876]
[1729094549569,100.06775695,156.0,155.96,9.86]
[1729094550166,3.2062,155.97,155.96,9.86]
[1729094550575,3.2062,155.97,155.96,13.05779181]
[1729094550766,3.206,155.98,155.96,13.05779181]
[1729094550960,3.206,155.98,155.97,9.86]
[1729094551577,3.206,155.99,155.97,9.86]
[1729094551876,15.02,156.03,155.98,9.86]
[1729094552468,5.16,156.03,155.98,9.86]
[1729094552674,3.2058,155.99,155.98,13.08154831]
[1729094553068,6.5591,156.04,155.98,13.08154831]
[1729094553371,3.2054,156.01,156.0,9.86]
[1729094553883,9.86,156.02,155.97,9.86]
[1729094554170,9.86,156.02,155.97,13.0106781]
[1729094554378,3.206,155.98,155.97,13.0106781]
[1729094555363,9.86,156.02,155.97,13.0106781]
[1729094556165,3.206,155.98,155.97,3.1506781]
[1729094556372,9.86,156.0,155.96,9.86]
[1729094556969,9.86,156.0,155.96,13.10026064]
[1729094557175,3.2062,155.97,155.96,13.10026064]
[1729094559277,3.2062,155.97,155.96,3.24026064]
[1729094559577,9.86,155.97,155.87,9.86]
[1729094559776,9.86,155.92,155.86,9.86]
[1729094559974,3.2082,155.88,155.86,13.01441313]
[1729094560179,9.86,155.92,155.87,9.86]
[1729094561079,3.208,155.88,155.86,13.01441313]
[1729094561392,3.208,155.88,155.86,9.86]
[1729094561771,3.208,155.88,155.86,3.19689253]
[1729094561978,3.208,155.88,155.85,3.2086]
[1729094562483,3.208,155.88,155.85,6.41864715]
[1729094563086,20.56,155.93,155.85,3.21004715]
[1729094563280,5.16,155.93,155.86,15.4]
[1729094563583,20.56,155.96,155.86,15.4]
[1729094563780,3.2074,155.91,155.88,3.2079]
[1729094566187,20.56,155.96,155.86,16.7761]
[1729094566388,3.2076,155.9,155.87,3.2081]
[1729094567479,3.2076,155.9,155.86,16.7761]
[1729094567785,20.56,155.96,155.88,3.2079]
[1729094567786,3.2075,155.91,155.88,3.2079]
[1729094568284,20.56,155.96,155.88,3.2079]
[1729094568285,3.2076,155.9,155.88,3.2079]
[1729094568989,3.2073,155.92,155.89,3.2077]
[1729094569410,5.16,155.96,155.89,3.2077]
[1729094570593,3.2074,155.92,155.89,3.2077]
[1729094570787,5.16,155.96,155.89,3.2077]
[1729094571290,3.2073,155.92,155.89,3.2077]
[1729094574194,3.2069,155.94,155.9,15.4]
[1729094574394,15.4,155.97,155.88,20.56]
[1729094574597,20.56,155.97,155.88,20.56]
[1729094574895,3.2073,155.92,155.89,3.2077]
[1729094576501,20.56,155.97,155.89,3.2077]
[1729094577001,20.56,155.97,155.88,20.56]
[1729094577002,3.2078,155.89,155.88,5.16]
[1729094577204,3.2078,155.89,155.87,3.2081]
[1729094577393,15.4,155.94,155.85,3.24726509]
[1729094577593,15.4,155.9,155.84,1.3251]
[1729094577802,15.4,155.9,155.82,5.16]
[1729094578293,3.2087,155.85,155.82,5.16]
[1729094578500,15.4,155.9,155.82,5.16]
[1729094578799,6.5055,155.97,155.86,15.4]
[1729094579101,15.4,155.96,155.89,3.2078]
[1729094579794,3.2068,155.94,155.89,3.2078]
[1729094579999,15.4,155.96,155.89,3.2078]
[1729094580404,3.2073,155.92,155.89,3.2078]
[1729094580601,15.4,155.94,155.87,1.3714]
[1729094580796,15.4,155.92,155.86,3.26353822]
[1729094581104,3.2082,155.87,155.83,5.16]
[1729094581401,3.2082,155.87,155.84,3.2088]
[1729094581593,3.2082,155.87,155.84,6.3984571]
[1729094581794,3.2086,155.86,155.84,3.1896571]
[1729094582006,3.2086,155.86,155.83,8.3689]
[1729094582506,3.2086,155.86,155.83,11.60089769]
[1729094583093,3.2084,155.87,155.84,3.2088]
[1729094584006,3.2084,155.87,155.84,6.44096353]
[1729094584406,3.2085,155.86,155.84,3.23216353]
[1729094584603,9.86,155.88,155.83,9.86]
[1729094584804,5.16,155.92,155.81,17.8073]
[1729094584805,9.86,155.87,155.81,17.8073]
[1729094585010,3.2086,155.85,155.81,17.8073]
[1729094585196,9.86,155.85,155.81,11.2467]
[1729094585396,9.86,155.84,155.81,1.3867]
[1729094585706,3.2092,155.83,155.81,1.3867]
[1729094585900,3.2092,155.83,155.8,3.2095]
[1729094586795,5.16,155.88,155.82,9.86]
[1729094586994,5.16,155.88,155.84,9.86]
[1729094587208,5.16,155.88,155.84,13.08134751]
[1729094587410,3.2084,155.86,155.84,16.29014751]
[1729094587712,3.2084,155.86,155.84,3.22134751]
[1729094587905,3.2084,155.86,155.78,5.16]
[1729094587906,3.2086,155.85,155.81,13.0694]
[1729094588101,9.86,155.85,155.8,9.86]
[1729094588314,9.86,155.81,155.77,1.3605]
[1729094588605,3.2097,155.8,155.77,1.3605]
[1729094588917,9.86,155.82,155.77,11.2205]
[1729094589500,3.2098,155.8,155.77,14.4308]
[1729094590011,3.2098,155.8,155.77,4.5708]
[1729094592709,3.2099,155.79,155.77,4.5708]
[1729094595307,3.2104,155.77,155.75,3.1426308]
[1729094595611,5.16,155.8,155.74,3.2108]
[1729094595799,3.2105,155.76,155.74,3.2108]
[1729094596002,5.16,155.8,155.71,15.41]
[1729094596003,20.57,155.8,155.71,15.41]
[1729094596307,20.57,155.8,155.7,2.6898]
[1729094596308,15.41,155.78,155.7,2.6898]
[1729094596508,3.2113,155.72,155.7,2.6898]
[1729094596707,5.16,155.8,155.7,2.6898]
[1729094596708,20.57,155.76,155.7,1.3407]
[1729094597208,3.2115,155.71,155.7,3.13321078]
[1729094597403,15.41,155.74,155.68,3.212]
[1729094597608,15.41,155.74,155.67,5.16]
[1729094597810,15.41,155.74,155.63,2.7832]
[1729094597811,15.41,155.72,155.63,18.1932]
[1729094598111,15.41,155.7,155.63,1.3407]
[1729094598803,3.2128,155.65,155.63,1.3407]
[1729094599109,15.41,155.7,155.63,1.3407]
[1729094599314,3.2128,155.65,155.63,1.3407]
[1729094599907,15.41,155.7,155.63,1.3407]
[1729094600111,3.2126,155.66,155.63,1.3407]
[1729094600606,3.2128,155.65,155.63,1.3407]
[1729094600913,15.41,155.68,155.6,8.3738]
[1729094601110,20.57,155.68,155.59,1.4425]
[1729094601304,15.41,155.66,155.58,3.18204881]
[1729094601501,15.41,155.66,155.56,5.16]
[1729094601708,15.41,155.66,155.58,3.2141]
[1729094602217,15.41,155.66,155.56,8.34213636]
[1729094602418,3.2133,155.63,155.59,3.214]
[1729094603206,5.16,155.66,155.62,3.2133]
[1729094603405,5.16,155.66,155.6,1.3277]
[1729094604017,3.2129,155.65,155.6,1.3277]
[1729094604419,3.2129,155.65,155.61,3.2135]
[1729094605316,5.16,155.66,155.6,1.3277]
[1729094605516,5.16,155.66,155.6,4.5415]
[1729094605739,20.57,155.66,155.6,1.3277]
[1729094606245,3.2133,155.63,155.6,4.5415]
[1729094606543,3.2133,155.63,155.6,1.3277]
[1729094607941,20.57,155.66,155.56,8.34213636]
[1729094608145,20.57,155.66,155.58,3.2142]
[1729094608350,20.57,155.66,155.56,8.34213636]
[1729094608738,3.2134,155.63,155.59,3.2139]
[1729094609551,3.2134,155.63,155.56,3.18213636]
[1729094609552,15.41,155.65,155.56,3.18213636]
[1729094609836,15.41,155.65,155.54,21.9119]
[1729094610224,3.2134,155.62,155.56,3.2145]
[1729094610430,15.41,155.65,155.56,3.2145]
[1729094610772,15.41,155.61,155.54,4.5578768]
[1729094610953,3.2147,155.56,155.54,4.5578768]
[1729094611859,20.59,155.61,155.54,3.2359768]
[1729094611860,15.41,155.59,155.54,3.2359768]
[1729094612064,3.2146,155.57,155.52,3.2154]
[1729094612253,15.41,155.59,155.52,6.44848466]
[1729094612455,15.41,155.59,155.52,3.2154]
[1729094612952,15.41,155.59,155.52,6.48551415]
[1729094613259,15.41,155.59,155.52,3.27011415]
[1729094613462,15.41,155.59,155.51,3.2155]
[1729094614059,15.41,155.59,155.51,6.50136832]
[1729094614363,3.215,155.55,155.51,6.50136832]
[1729094614563,20.59,155.61,155.53,3.2151]
[1729094614992,3.2148,155.56,155.53,3.2151]
[1729094615474,3.2148,155.56,155.54,3.15758442]
[1729094615659,3.2143,155.58,155.51,15.41]
[1729094615869,5.18,155.61,155.51,15.41]
[1729094616065,15.41,155.62,155.51,15.41]
[1729094616358,3.2141,155.59,155.54,3.215]
[1729094616567,5.18,155.61,155.53,20.59]
[1729094616967,3.2142,155.59,155.53,20.59]
[1729094617566,3.214,155.59,155.53,20.59]
[1729094618366,3.2141,155.59,155.53,20.59]
[1729094619203,3.2137,155.61,155.53,20.59]
[1729094619476,3.2137,155.61,155.55,15.41]
[1729094619768,3.2137,155.61,155.56,1.3453]
[1729094619948,3.2137,155.61,155.58,3.2141]
[1729094620153,3.2137,155.61,155.59,3.15761262]
[1729094620531,15.41,155.66,155.56,2.6904]
[1729094620733,3.2132,155.63,155.57,15.41]
[1729094620935,5.18,155.65,155.57,23.75404229]
[1729094621140,3.2128,155.65,155.61,3.2134]
[1729094621536,5.18,155.67,155.59,15.41]
[1729094621829,3.2132,155.64,155.6,3.2137]
[1729094622232,15.41,155.68,155.59,15.41]
[1729094622438,19.29,155.8,155.64,3.2129]
[1729094622439,5.18,155.71,155.64,3.2129]
[1729094622635,5.18,155.71,155.63,15.41]
[1729094623334,5.18,155.72,155.65,15.41]
[1729094623838,3.2121,155.69,155.66,3.2125]
[1729094624039,5.18,155.72,155.65,3.19291613]
[1729094624229,5.18,155.72,155.63,18.1567]
[1729094624938,3.2121,155.69,155.66,3.2125]
[1729094625138,5.18,155.72,155.67,3.27894793]
[1729094626538,3.2121,155.69,155.67,3.27894793]
[1729094626730,15.41,155.7,155.63,2.7467]
[1729094626936,15.41,155.69,155.59,5.18]
[1729094627137,3.2129,155.65,155.59,5.18]
[1729094627749,3.2129,155.65,155.59,8.35550703]
[1729094627931,3.2129,155.65,155.61,3.2135]
[1729094628447,3.2135,155.62,155.59,11.56950703]
[1729094628952,15.41,155.67,155.59,11.56950703]
[1729094629246,3.2133,155.63,155.6,3.2137]
[1729094632145,3.213,155.64,155.61,3.2135]
[1729094632546,3.213,155.64,155.59,8.35550703]
[1729094632547,16.8294,155.67,155.59,8.35550703]
[1729094632839,16.8294,155.67,155.6,3.2137]
[1729094633249,3.2133,155.63,155.6,3.2137]
[1729094634045,3.2128,155.65,155.59,8.35550703]
[1729094634234,16.8294,155.67,155.59,8.35550703]
[1729094634747,3.2133,155.63,155.59,11.56930703]
[1729094635847,1.4,155.62,155.59,11.56930703]
[1729094636939,1.4,155.62,155.61,3.2136]
[1729094637249,1.4,155.62,155.59,8.35550703]
[1729094637448,4.6134,155.62,155.6,3.2138]
[1729094638448,1.4,155.62,155.6,3.2138]
[1729094640154,4.6134,155.62,155.6,3.2138]
[1729094640346,1.4,155.62,155.61,3.2136]
[1729094640543,5.18,155.69,155.61,15.41]
[1729094640742,5.18,155.69,155.62,15.41]
[1729094640743,3.2124,155.67,155.62,15.41]
[1729094641359,3.2124,155.67,155.64,3.213]
[1729094642551,34.7,155.8,155.65,15.41]
[1729094642552,3.2119,155.7,155.65,15.41]
[1729094642750,105.40772766,155.74,155.66,16.7834]
[1729094642945,2.6806,155.79,155.7,15.41]
[1729094643250,2.6806,155.79,155.7,23.79804317]
[1729094644269,2.6806,155.79,155.72,3.2113]
[1729094644675,1.3341,155.79,155.72,3.2113]
[1729094644977,3.2106,155.76,155.72,3.2113]
[1729094645162,16.7441,155.79,155.7,8.38804317]
[1729094645365,3.2112,155.73,155.7,8.38804317]
[1729094646177,15.41,155.77,155.7,8.38804317]
[1729094646472,15.41,155.77,155.7,3.20804317]
[1729094646779,15.41,155.77,155.69,20.57]
[1729094647270,15.41,155.77,155.69,23.8481229]
[1729094647480,3.2111,155.73,155.69,21.8999229]
[1729094647670,3.2111,155.73,155.69,27.0599229]
[1729094648679,3.2113,155.72,155.69,27.0599229]
[1729094649477,3.2113,155.72,155.69,21.8999229]
[1729094649680,3.2113,155.72,155.69,27.0599229]
[1729094649877,15.41,155.77,155.69,27.0599229]
[1729094650083,3.2108,155.75,155.71,18.6214]
[1729094650282,16.7441,155.79,155.71,18.6214]
[1729094650679,3.2108,155.75,155.71,18.6214]
[1729094651477,3.2108,155.75,155.71,23.7814]
[1729094651682,3.2112,155.73,155.71,5.16]
[1729094652186,3.211,155.74,155.71,5.16]
[1729094652371,3.211,155.74,155.7,3.2117]
[1729094652577,15.41,155.75,155.69,3.2781229]
[1729094652781,3.2117,155.7,155.67,3.2123]
[1729094652971,15.41,155.75,155.67,5.16]
[1729094653178,15.41,155.75,155.68,3.212]
[1729094653678,3.211,155.74,155.71,3.2113]
[1729094654386,3.2109,155.75,155.72,3.2112]
[1729094654584,16.7441,155.79,155.69,15.41]
[1729094654585,21.9041,155.79,155.69,15.41]
[1729094654881,21.9041,155.79,155.7,5.16]
[1729094655086,3.2104,155.77,155.72,3.2112]
[1729094655276,1.4291,155.83,155.73,15.41]
[1729094655587,5.16,155.84,155.75,15.41]
[1729094656087,5.16,155.84,155.75,16.8049]
[1729094656384,3.2093,155.82,155.77,15.41]
[1729094656886,3.2095,155.81,155.75,20.08332671]
[1729094657084,5.16,155.84,155.75,20.08332671]
[1729094657281,5.16,155.84,155.76,3.2104]
[1729094657479,5.16,155.84,155.75,20.08332671]
[1729094657886,3.2094,155.82,155.75,20.08332671]
[1729094658078,5.16,155.84,155.75,20.08332671]
[1729094658691,3.2095,155.81,155.75,20.08332671]
[1729094659893,3.2095,155.81,155.78,3.2101]
[1729094660092,15.41,155.85,155.78,5.16]
[1729094660293,3.2091,155.83,155.78,5.16]
[1729094660484,6.5328,155.88,155.78,5.16]
[1729094660485,6.5328,155.88,155.8,15.41]
[1729094660790,6.5328,155.88,155.81,1.346]
[1729094661186,15.41,155.87,155.79,1.3378]
[1729094661379,15.41,155.83,155.76,1.346]
[1729094661581,15.41,155.83,155.75,4.67332671]
[1729094661582,15.41,155.79,155.75,3.27842671]
[1729094661789,15.41,155.79,155.72,3.2112]
[1729094661984,15.41,155.79,155.72,5.16]
[1729094661985,3.2103,155.77,155.72,5.16]
[1729094662189,15.41,155.79,155.72,5.16]
[1729094662390,15.41,155.79,155.72,8.3713]
[1729094663478,3.2107,155.75,155.72,8.3713]
[1729094666596,24.68,155.81,155.72,5.16]
[1729094666784,24.68,155.84,155.72,5.16]
[1729094666989,5.16,155.85,155.73,24.68]
[1729094667190,5.16,155.85,155.74,2.6976]
[1729094667389,3.2094,155.82,155.74,2.6976]
[1729094667591,5.16,155.85,155.75,1.3284]
[1729094667793,3.2094,155.82,155.79,3.2098]
[1729094667996,1.3524,155.86,155.76,29.84]
[1729094668193,5.16,155.87,155.76,33.1229523]
[1729094668492,3.2091,155.83,155.76,33.1229523]
[1729094668994,3.2091,155.83,155.8,3.2095]
[1729094669215,3.2091,155.83,155.8,8.3695]
[1729094669514,6.5328,155.88,155.8,8.3695]
[1729094669730,3.2093,155.82,155.8,8.3695]
[1729094672014,6.5328,155.88,155.8,5.16]
[1729094672216,24.68,155.86,155.76,8.5029523]
[1729094672441,24.68,155.84,155.76,5.22]
[1729094672621,3.2101,155.78,155.77,3.27418657]
[1729094672819,5.22,155.83,155.74,7.9176]
[1729094673021,5.22,155.83,155.74,6.5794]
[1729094673022,24.68,155.81,155.74,6.5794]
[1729094673626,3.2107,155.75,155.74,1.3594]
[1729094675831,3.2109,155.74,155.73,5.22]
[1729094677423,3.2113,155.72,155.7,2.8458]
[1729094678233,3.2112,155.73,155.7,6.0574]
[1729094678827,3.2121,155.69,155.66,3.2124]
[1729094679125,6.4205,155.78,155.64,5.22]
[1729094679126,24.68,155.74,155.64,5.22]
[1729094679331,3.2127,155.66,155.64,5.22]
[1729094680828,24.68,155.74,155.64,8.433]
[1729094680829,3.2124,155.67,155.64,8.433]
[1729094681644,24.68,155.74,155.64,5.22]
[1729094682123,3.2115,155.71,155.64,8.4329]
[1729094682328,24.68,155.74,155.64,8.4329]
[1729094682729,3.2123,155.68,155.64,8.4329]
[1729094684627,24.68,155.74,155.64,8.4329]
[1729094684829,3.2124,155.67,155.64,8.4329]
[1729094686536,3.2128,155.66,155.64,5.22]
[1729094686839,5.22,155.71,155.62,3.2133]
[1729094687248,7.9878,155.71,155.62,3.2133]
[1729094688638,3.2127,155.66,155.62,3.2133]
[1729094688836,3.2127,155.66,155.63,3.2132]
[1729094689229,3.2128,155.65,155.61,9.2372]
[1729094689531,3.2128,155.65,155.62,3.2133]
[1729094689833,3.2136,155.62,155.59,6.38940703]
[1729094690055,5.22,155.66,155.59,3.17550703]
[1729094690244,5.22,155.66,155.58,15.43]
[1729094690447,3.2135,155.62,155.58,18.6441]
[1729094690633,3.2135,155.62,155.58,15.43]
[1729094690831,3.2135,155.62,155.58,18.60214181]
[1729094691234,3.2135,155.62,155.59,3.214]
[1729094694216,5.22,155.66,155.58,18.60214181]
[1729094694513,3.2137,155.61,155.58,21.81614181]
[1729094694701,3.2137,155.61,155.58,18.60214181]
[1729094694903,3.2137,155.61,155.59,3.214]
[1729094695310,5.22,155.66,155.59,3.214]
[1729094695612,3.2135,155.62,155.59,3.214]
[1729094697308,3.2137,155.61,155.58,21.81624181]
[1729094697713,5.22,155.66,155.58,18.60214181]
[1729094698308,3.2136,155.61,155.59,3.2139]
[1729094699611,2.7678,155.71,155.6,15.43]
[1729094699914,5.22,155.7,155.63,18.643]
[1729094700718,5.22,155.7,155.63,21.82969119]
[1729094700910,3.2128,155.65,155.63,3.18669119]
[1729094701110,3.2128,155.65,155.62,3.2133]
[1729094701712,3.2128,155.65,155.62,6.45398656]
[1729094703509,3.2127,155.66,155.64,3.2129]
[1729094704211,3.2127,155.66,155.63,18.6431]
[1729094704410,3.2127,155.66,155.63,21.89473008]
[1729094707618,3.2124,155.67,155.64,3.2129]
[1729094711621,3.2126,155.66,155.64,3.2129]
[1729094712316,3.2125,155.67,155.64,3.2129]
[1729094712515,2.7678,155.71,155.65,15.43]
[1729094712716,5.18,155.71,155.65,15.43]
[1729094712923,5.18,155.71,155.65,3.28398464]
[1729094713118,15.43,155.68,155.59,18.2086]
[1729094713309,5.18,155.67,155.59,18.2086]
[1729094713516,5.18,155.67,155.61,3.2135]
[1729094713712,5.18,155.67,155.61,3.18984439]
[1729094714012,15.43,155.64,155.55,15.43]
[1729094714214,15.43,155.68,155.49,3.16928133]
[1729094714215,15.43,155.6,155.49,3.16928133]
[1729094714421,3.2148,155.56,155.5,16.8514]
[1729094714821,3.2148,155.56,155.52,3.2154]
[1729094715021,5.18,155.59,155.52,3.2154]
[1729094715326,3.2148,155.56,155.52,3.2154]
[1729094715625,1.3473,155.61,155.54,15.43]
[1729094715822,5.18,155.6,155.56,15.43]